[Event "87th Tata Steel Challengers 2025"]
[Site "Wijk aan Zee"]
[Date "2025.01.21"]
[Round "4.6"]
[White "Deshmukh, Divya"]
[Black "Gurel, Ediz"]
[Result "1-0"]
[Annotator "TA"]
[ECO "E36"]
[WhiteElo "2490"]
[BlackElo "2624"]
[PlyCount "111"]
[EventDate "2025.01.13"]
[EventType "tourn"]
[EventCountry "NED"]
[TimeControl "40/6000+30:20/3000+30:900+30"]

{[%evp 12,111,0,11,17,6,8,3,6,0,31,29,35,32,50,46,48,54,38,23,32,29,27,4,68,72,66,62,86,34,27,38,80,75,70,74,100,58,75,0,17,19,17,20,20,13,20,16,18,12,67,62,79,70,108,104,104,104,104,104,119,119,119,119,248,262,226,173,257,238,254,151,147,0,227,227,235,222,283,306,321,254,293,287,375,368,735,733,712,690,29965,29966,29968,29970,29968,29966,29973,29974,29974,29974,29972,29973]} 1. d4 {[%emt 0:00:05]} Nf6 {[%emt 0:00:14]} 2. c4 {[%emt 0:00:14]} e6 {[%emt 0:00:15]} 3. Nc3 {[%emt 0:00:07]} Bb4 {[%emt 0:00:15]} 4. Qc2 {[%emt 0:00:15]} d5 {[%emt 0:03:50]} 5. a3 {[%emt 0:00:24]} Bxc3+ {[%emt 0:00:20]} 6. Qxc3 {[%emt 0:00:06]} O-O {[%emt 0:00:20]} 7. Nf3 {[%emt 0:00:12]} b6 {[%emt 0:02:04] E36: Nimzo-Indian: Classical: 4...d5 5 a3.} 8. Bg5 {[%emt 0:04:31]} dxc4 {[%emt 0:06:41][%cal Of6e4]} 9. Qxc4 {[%emt 0:00:27][%cal Oe2e4]} Ba6 {[%emt 0:03:35] The position is equal.} 10. Qa4 {[%emt 0:00:05]} Bb7 {[%emt 0:08:22]} 11. e3 {[%emt 0:17:53]} h6 {[%emt 0:04:46]} 12. Bh4 {[%emt 0:01:41]} Nbd7 {[%emt 0:16:28]} 13. Bb5 {[%emt 0:04:09]} Qc8 $146 {[%emt 0:15:55]} (13... c5 14. Ne5 g5 15. Bxd7 gxh4 16. dxc5 bxc5 17. Bc6 Rb8 18. Bxb7 Rxb7 19. Nc4 Nd5 20. h3 Nb6 21. Nxb6 axb6 22. O-O Kh8 23. Rad1 Qf6 {½-½ Stone,G (2193)-Lopes,R (2185) POR-USA email 2013 [3]}) 14. Rc1 {[%emt 0:11:54]} c5 {[%emt 0:05:27]} 15. Bxf6 {[%emt 0:16:44]} Nxf6 {[%emt 0:00:19]} 16. dxc5 {[%emt 0:00:07]} bxc5 {[%emt 0:00:37]} 17. b4 {[%emt 0:04:11][%cal Bb2b4,Bb4c5][%mdl 32]} Ne4 {[%emt 0:03:41]} (17... a6 $1 $11 18. Be2 Qd7) 18. O-O $14 {[%emt 0:07:17]} Qc7 {[%emt 0:07:27]} 19. Bd3 {[%emt 0:02:03]} Rfd8 {[%emt 0:03:31]} 20. Bxe4 {[%emt 0:01:49]} (20. Rfd1 $16) 20... Bxe4 {[%emt 0:00:02]} 21. bxc5 {[%emt 0:04:33]} Bc6 {[%emt 0:00:52]} 22. Qc2 {[%emt 0:01:16]} Rac8 {[%emt 0:04:01]} 23. Nd4 {[%emt 0:01:38]} Ba8 {[%emt 0:01:54]} 24. Rfd1 {[%emt 0:13:10][%cal Bf1d1,Bd1d5,Bd5d8][%mdl 32]} (24. c6 $6 e5 25. Nb5 Qxc6 26. Qxc6 Rxc6 $11) 24... Rd5 {[%emt 0:05:10][%cal Rd5c5]} 25. Nb5 {[%emt 0:03:04]} (25. c6 $16) 25... Qxc5 {[%emt 0:02:59]} 26. Rxd5 {[%emt 0:00:50]} (26. Qxc5 Rcxc5 27. Nd4 Kh7 $15) 26... Qxc2 {[%emt 0:00:11]} 27. Rxc2 {[%emt 0:00:04]} Rxc2 $11 {[%emt 0:00:03][%mdl 4096] Endgame KRB-KRN} 28. Rd8+ $1 {[%emt 0:00:14]} Kh7 {[%emt 0:00:04] ( -> ...Rc1+)} 29. h4 {[%emt 0:00:03]} Bd5 {[%emt 0:00:55]} 30. Nxa7 {[%emt 0:01:19]} Rc5 {[%emt 0:01:26]} (30... g5 $11) 31. Nc8 $14 {[%emt 0:02:35]} Ra5 {[%emt 0:01:17][%cal Oa5a8] and ...Ra8! should not be overlooked} 32. Rd7 {[%emt 0:09:02]} Rxa3 {[%emt 0:04:40]} 33. Rxf7 {[%emt 0:00:22]} Ra4 {[%emt 0:00:38]} 34. f3 {[%emt 0:03:39]} Rxh4 {[%emt 0:03:32]} 35. e4 $1 {[%emt 0:00:00]} Bb3 {[%emt 0:00:44]} 36. Rb7 {[%emt 0:00:15]} Ba4 {[%emt 0:01:55]} 37. Nb6 {[%emt 0:00:36]} Bc2 {[%emt 0:01:31]} (37... Bb5 $16 38. Re7 Rf4 39. Rxe6 Rf7) 38. Nd7 $18 {[%emt 0:01:55]} Rf4 {[%emt 0:00:37] [#]} 39. Nc5 $1 {[%emt 0:00:31]} Rf8 {[%emt 0:01:50]} (39... Rf6 {is a better defense.} 40. Rb2 Bd1) 40. Nxe6 {[%emt 0:00:31]} Rg8 {[%emt 0:00:00]} 41. Nc5 {[%emt 0:50:24]} ({Better is} 41. Kf2 $18) 41... Rc8 $16 {[%emt 0:51:25]} 42. Ne6 {[%emt 0:00:00] White is more active.} (42. Nd7 $16) 42... Rg8 $18 {[%emt 0:00:00]} 43. Nd4 {[%emt 0:00:00]} Ba4 {[%emt 0:00:00]} 44. Nf5 {[%emt 0:00:00]} h5 {[%emt 0:00:00]} 45. Kf2 {[%emt 0:00:00]} Kh8 {[%emt 0:00:00]} 46. e5 {[%emt 0:00:00]} Re8 {[%emt 0:00:00]} 47. Nd6 {[%emt 0:00:00]} (47. Nxg7 Rxe5 48. f4 Rc5 $11) 47... Re6 {[%emt 0:00:00]} 48. f4 {[%emt 0:00:00]} Kg8 $2 {[%emt 0:00:00]} (48... g6 49. Ra7 Bb3) 49. Rb8+ {[%emt 0:00:00]} Kh7 {[%emt 0:00:00]} 50. Ne4 {[%emt 0:00:00] Threatens to win with Ng5+.} Re8 {[%emt 0:00:00] [#]} 51. Rxe8 {[%emt 0:00:00] White mates.} Bxe8 {[%emt 0:00:00]} 52. e6 {[%emt 0:00:00][%cal Be5e6,Be6e7][%mdl 32]} Bc6 {[%emt 0:00:00]} 53. Nd6 {[%emt 0:00:00]} g5 {[%emt 0:00:00]} 54. fxg5 {[%emt 0:00:00]} Kg6 {[%emt 0:00:00]} 55. e7 {[%emt 0:00:00]} Kxg5 {[%emt 0:00:00]} 56. Kg3 {[%emt 0:00:00] Weighted Error Value: White=0.11 (very precise) /Black=0.37  Mistake:       	White=4     	Black=5      Inaccurate:     	White=1     	Black=5      OK:         	White=20    	Black=14     Best:        	White=6     	Black=2      Strong:       	White=2     	---} 1-0